Cogmind - Beta 10.2 @@@ ROGUE MODE // 2021.01.02 @ 16:50:43 Player: CrossedViper Result: Destroyed by P-80 Master with Gamma Rifle Performance ------------- Evolutions (7) 3500 Regions Visited (27) 5400 Robots Destroyed (304) 1520 Value Destroyed (11318) 11318 Prototype IDs (73) 1460 Alien Tech Used (9) 1800 Bonus (2343) 2343 TOTAL SCORE: 27341 Bonus ------- High Alert Combat Kills 1238 Follower Combat Kills 769 Aligned with FarCom 300 Destroyed Z-Imprinter 1000 Met Zhirov 300 Met Warlord at Base 500 MAIN.C Attacked Warlord 500 Friendly Fire -2264 Cogmind --------- Core Integrity 0/1300 Matter 12/300 Energy 150/350 System Corruption 29% Temperature Cool (0) Movement Walking (150) Ox1 Location -3/Quarantine Parts ------- > --- POWER (2) -------- Improved Quantum Reactor > --- PROPULSION (5) --- High-density Centrium Leg High-density Centrium Leg Improved Antigrav System Improved Gyrokinetic Inverter Combat Antigrav System > --- UTILITY (12) ----- Experimental Cooling System Large Storage Unit High-capacity Storage Unit Experimental Target Analyzer Advanced Armor Integrity Analyzer Quantum Capacitor Centrium Medium Armor Plating Phase Redirector Advanced Hacking Suite Makeshift System Shield Advanced Dynamic Insulation System > --- WEAPON (3) ------- Gamma Rifle Core Stripper > --- INVENTORY (18) --- Experimental Heat Sink Zionite Metafield Generator Quantum Capacitor Advanced ECM Suite Experimental ECM Suite Heart of Steel Gamma Rifle Enhanced Gamma Rifle Multirail Peak State ------------ > --- POWER ------------ Improved Quantum Reactor > --- PROPULSION ------- High-density Centrium Leg High-density Centrium Leg Improved Antigrav System Improved Gyrokinetic Inverter Combat Antigrav System > --- UTILITY ---------- Experimental Cooling System Large Storage Unit High-capacity Storage Unit Experimental Target Analyzer Advanced Armor Integrity Analyzer Quantum Capacitor Centrium Medium Armor Plating Phase Redirector Advanced Hacking Suite Makeshift System Shield Advanced Dynamic Insulation System > --- WEAPON ----------- Gamma Rifle Core Stripper > --- INVENTORY -------- Experimental Heat Sink Zionite Metafield Generator Quantum Capacitor Advanced ECM Suite Experimental ECM Suite Heart of Steel Gamma Rifle Enhanced Gamma Rifle Multirail [Rating: 180] Favorites ----------- Power Neutrino Core Engine Deuterium Engine Power Core Neutrino Core Reactor Heavy Antimatter Reactor Propulsion Armored Treads Treads Armored Treads Leg Advanced Myomer Leg Wheel Armored Huge Wheel Hover Unit Cooled Gravmag System Utility High-capacity Storage Unit Device Experimental Heat Sink Storage High-capacity Storage Unit Processor Experimental Terrain Scan Processor Hackware Makeshift System Shield Protection Improved Medium Armor Plating Artifact Matter Drive Weapon KE Penetrator Energy Gun Zionite Laser-M Energy Cannon EM Pulse Cannon Ballistic Gun KE Penetrator Ballistic Cannon Linear Accelerator Launcher Heavy Rocket Launcher Special Weapon Plasma Cutter Impact Weapon Core Stripper Slashing Weapon Mining Claw Piercing Weapon CR-A16's Pointy Stick Build | -11 -10 -10 -9 -9 -9 -8 -8 -8 -7 -7 -7 -7 -7 -6 -6 -5 -5 -5 -5 -4 -4 -4 -4 -4 -3 -3 -3 ------- Run | Scr Mat Min Mat Min Exi Min Mat Sto Fac Low Low Zio Dee Pro Fac Fac Upp Upp Zhi Pro Fac Upp Upp War Pro Res Qua Slots Evolved 14 | . . . 2 . . . 2 . 2 . . . . . 2 2 . . . . 2 . . . . 2 . Power 1 | . . . . . . . . . . . . . . . 1 . . . . . . . . . . . . Propulsion 3 | . . . . . . . . . 1 . . . . . . . . . . . 2 . . . . . . Utility 9 | . . . 2 . . . 2 . . . . . . . 1 2 . . . . . . . . . 2 . Weapon 1 | . . . . . . . . . 1 . . . . . . . . . . . . . . . . . . Parts Attached 398 | . 11 2 19 13 19 4 19 14 24 8 4 7 23 7 16 47 8 3 16 10 9 19 1 13 8 10 64 Power 31 | . 1 1 2 . 1 . 2 2 2 . . . 1 . 2 3 . . 1 . 1 1 . 5 . . 6 Engine 11 | . 1 . 2 . . . 2 2 1 . . . . . 2 . . . . . . . . . . . 1 Core 15 | . . 1 . . 1 . . . 1 . . . 1 . . 3 . . . . 1 1 . 3 . . 3 Reactor 5 | . . . . . . . . . . . . . . . . . . . 1 . . . . 2 . . 2 Propulsion 57 | . 4 . 4 3 1 . 5 1 2 2 . . 4 1 2 13 1 . 3 . 1 . . 1 . . 9 Treads 33 | . 4 . 4 3 1 . 5 1 . . . . 3 . 1 9 . . . . . . . . . . 2 Leg 4 | . . . . . . . . . 1 1 . . . . . . . . . . . . . . . . 2 Wheel 9 | . . . . . . . . . 1 1 . . . 1 1 4 1 . . . . . . . . . . Hover 11 | . . . . . . . . . . . . . 1 . . . . . 3 . 1 . . 1 . . 5 Flight . | . . . . . . . . . . . . . . . . . . . . . . . . . . . . Utility 180 | . 4 1 6 5 6 2 6 4 11 6 3 2 7 . 7 16 4 2 12 6 4 16 1 5 7 8 29 Device 89 | . 1 . . 1 3 1 . 2 8 5 2 1 3 . 4 11 3 1 5 4 3 7 1 4 3 2 14 Storage 16 | . 2 1 2 . . . 1 . . . . 1 1 . 1 1 . . 2 . . 1 . . 1 1 1 Processor 14 | . . . . 1 . . . . 1 1 1 . 1 . 1 4 . . . . . . . 1 1 . 2 Hackware 5 | . . . . . . . . . . . . . . . . . . . . . . . . . . 4 1 Protection 50 | . 1 . 4 3 3 1 5 2 2 . . . 2 . 1 . 1 1 5 2 1 8 . . 2 1 5 Artifact 6 | . . . . . . . . . . . . . . . . . . . . . . . . . . . 6 Weapon 130 | . 2 . 7 5 11 2 6 7 9 . 1 5 11 6 5 15 3 1 . 4 3 2 . 2 1 2 20 Energy Gun 31 | . . . . . . . 2 3 . . . 2 6 2 . 6 2 . . . 1 . . . . . 7 Energy Cannon 8 | . . . . 1 1 1 . . 1 . . . . . 1 . . . . . . . . 2 . 1 . Ballistic Gun 54 | . 2 . 6 4 6 . 2 1 7 . . 3 4 1 3 6 . . . 2 2 . . . . 1 4 Ballistic Cannon 2 | . . . . . . . . . . . . . . . . . . . . . . . . . . . 2 Launcher 21 | . . . . . 1 1 2 2 1 . 1 . 1 3 1 2 . . . 2 . 1 . . 1 . 2 Special Weapon 3 | . . . . . 2 . . . . . . . . . . . 1 . . . . . . . . . . Impact Weapon 1 | . . . . . . . . . . . . . . . . . . . . . . . . . . . 1 Slashing Weapon 7 | . . . 1 . 1 . . 1 . . . . . . . . . . . . . . . . . . 4 Piercing Weapon 3 | . . . . . . . . . . . . . . . . 1 . 1 . . . 1 . . . . . Special Melee Weapon . | . . . . . . . . . . . . . . . . . . . . . . . . . . . . Unidentified Prototypes 50 | . . . . 1 3 . . 2 4 . . . 7 . 1 1 . 1 7 . . . . 5 1 2 15 Parts Lost 67 | . . . . . 1 1 6 3 3 . . . 2 6 2 7 . . . . 4 1 . . . 4 27 Power 9 | . . . . . 1 . . . . . . . 1 . . 1 . . . . . . . . . . 6 Propulsion 15 | . . . . . . . 1 1 . . . . . 1 1 4 . . . . . . . . . 3 4 Utility 23 | . . . . . . 1 3 2 1 . . . 1 2 . . . . . . 2 . . . . 1 10 Weapon 20 | . . . . . . . 2 . 2 . . . . 3 1 2 . . . . 2 1 . . . . 7 Highest Loss Streak 6 | . . . . . 1 1 2 3 3 . . . 1 6 2 4 . . . . 4 1 . . . 3 6 Average Slot Usage (%) 94 | . 97 100 99 100 98 99 95 96 91 91 92 92 98 84 88 96 100 99 98 100 89 84 90 91 92 82 71 Engine 3 | . 14 7 5 11 9 . 8 8 6 . . . . . 5 4 . . . . . . . . . . . Core 4 | . . 6 5 . . 11 . . . 7 7 7 7 7 4 5 11 11 7 5 5 5 5 3 . . 2 Treads 10 | . 26 28 22 22 22 22 18 18 10 1 . . 13 7 . 8 . . . . . . . . . . . Leg 1 | . . . . . . . . . . 5 7 7 7 7 2 . . . . . . . . . . . . Wheel 2 | . . . . . . . . . 4 7 7 7 . 2 9 5 17 16 6 . . . . . . . . Hover 3 | . . . . . . . . . . . . . . . . . . . 9 16 17 20 20 21 25 16 9 Device 11 | . 7 . . . . 20 12 14 13 12 14 16 9 7 17 20 22 22 17 15 12 14 15 16 11 10 9 Storage 17 | . 14 23 22 22 18 11 18 18 15 15 15 16 23 23 20 17 17 16 16 16 15 15 15 15 15 10 9 Processor 7 | . . . . 4 11 . . . 7 14 15 12 6 3 5 10 11 11 11 11 10 10 10 11 15 10 10 Hackware 1 | . . . . . . . . . . . . . . . . . . . . . . . . . . 15 16 Protection 8 | . 5 4 21 17 13 12 21 18 8 1 . . 4 3 1 1 . 4 7 11 9 7 10 7 7 5 2 Energy Gun 2 | . . . . . . . 3 11 6 . . . 17 12 5 3 3 . . . 2 . . . . . 2 Energy Cannon 1 | . . . . . . 9 2 . 4 . . . . . 3 1 . . . . . . . 1 5 2 . Ballistic Gun 11 | . 27 28 20 21 19 1 3 1 11 23 17 17 4 3 7 9 13 11 11 11 12 1 . . . 1 . Launcher 1 | . . . . . . 11 6 4 . . 4 4 . 3 2 1 . . . . . 2 5 5 6 4 . Naked Turns . | . . . . . . . . . . . . . . . . . . . . . . . . . . . . Heaviest Build 167 | 12 25 40 85 88 84 69 104 107 98 88 89 105 121 117 135 138 124 123 140 141 140 137 136 166 167 167 137 Greatest Support 88 | 20 40 40 40 40 40 40 40 40 40 28 28 28 40 40 40 79 36 36 51 51 68 68 68 88 88 88 81 Greatest Overweight (x) 5 | . . . 2 2 2 1 2 2 3 3 3 3 5 4 4 4 3 3 4 2 2 2 1 2 1 2 4 Average Overweight (x) 1 | . . . 1 2 1 1 2 2 2 3 3 3 2 2 3 2 3 3 2 2 1 1 1 1 1 1 1 Largest Inventory Capacity 26 | . 10 16 20 20 20 12 20 20 20 20 20 26 26 26 26 26 26 26 26 26 26 26 26 26 26 26 18 Average Capacity 20 | . 7 13 16 20 17 12 20 20 20 20 20 21 26 26 26 26 26 26 26 26 26 26 26 26 26 20 18 Most Carried 26 | . 10 12 18 20 20 12 20 20 20 20 20 24 26 26 26 26 26 26 26 26 26 26 26 26 26 24 18 Average Carried 19 | . 5 11 15 19 16 11 18 18 19 19 20 19 24 25 25 25 25 25 25 25 24 24 25 25 25 19 16 Final Capacity 26 | 6 10 16 20 20 12 12 20 20 20 20 20 26 26 26 26 26 26 26 26 26 26 26 26 26 26 18 18 Final Carried 26 | 6 10 12 18 19 12 12 18 20 19 20 20 24 26 25 26 25 25 26 26 25 23 26 25 26 25 18 12 Class Distribution -------------------- 37% | Hauler-Mutant 20% | Mutant 8% | Hauler-Skirmisher 8% | Scavenger-Mutant 6% | Scavenger-Gunner 5% | Hacker-Mutant 5% | Hauler-Gunner 4% | Hauler-Tank Dominant Class ---------------- Mutant | -10/Materials Mutant | -10/Mines Mutant | -9/Materials Hauler-Mutant | -9/Mines Hauler-Mutant | -9/Exiles Mutant | -8/Mines Hauler-Mutant | -8/Materials Hauler-Mutant | -8/Storage Hauler-Skirmisher | -7/Factory Hauler-Skirmisher | -7/Lower Caves Hauler-Mutant | -7/Lower Caves Hauler-Mutant | -7/Zion Scavenger-Gunner | -7/Deep Caves Hauler-Mutant | -6/Proximity Caves Hauler-Mutant | -6/Factory Scavenger-Gunner | -5/Factory Scavenger-Mutant | -5/Upper Caves Scavenger-Mutant | -5/Upper Caves Scavenger-Mutant | -5/Zhirov Hauler-Mutant | -4/Proximity Caves Hauler-Tank | -4/Factory Hauler-Mutant | -4/Upper Caves Hauler-Mutant | -4/Upper Caves Hauler-Mutant | -4/Warlord Hauler-Mutant | -3/Proximity Caves Hacker-Mutant | -3/Research Hacker-Mutant | -3/Quarantine Resources | -11 -10 -10 -9 -9 -9 -8 -8 -8 -7 -7 -7 -7 -7 -6 -6 -5 -5 -5 -5 -4 -4 -4 -4 -4 -3 -3 -3 ----------- Run | Scr Mat Min Mat Min Exi Min Mat Sto Fac Low Low Zio Dee Pro Fac Fac Upp Upp Zhi Pro Fac Upp Upp War Pro Res Qua Matter Collected 10532 | 200 317 72 610 226 245 275 662 262 623 128 45 169 273 413 318 924 238 102 344 593 262 1742 . 427 164 267 631 Remotely . | . . . . . . . . . . . . . . . . . . . . . . . . . . . . Salvage Created 12204 | . 738 13 780 289 237 581 1453 497 1087 60 61 53 295 395 598 1427 189 . 344 513 300 335 . . 989 119 851 Parts 622 | . 45 2 61 23 5 31 85 16 55 2 6 2 26 6 32 69 8 . 3 17 9 9 . . 38 11 61 Haulers Intercepted 12 | . 1 . 2 . . . 1 . 3 . . . . . 1 3 . . . . . . . . 1 . . Recyclers Shooed 8 | . 3 . . . . . 2 . 1 . . . . . . 2 . . . . . . . . . . . Parts Field Recycled . | . . . . . . . . . . . . . . . . . . . . . . . . . . . . Retrieved Matter . | . . . . . . . . . . . . . . . . . . . . . . . . . . . . Parts Self-Destructed 91 | . . . . . . . . . . 2 7 1 . 7 . . 6 . 3 10 . 11 . 41 3 . . Prevented 47 | . . . . . . . . . . . 6 . . . . . . . . 8 . 1 . 6 26 . . Kills | -11 -10 -10 -9 -9 -9 -8 -8 -8 -7 -7 -7 -7 -7 -6 -6 -5 -5 -5 -5 -4 -4 -4 -4 -4 -3 -3 -3 ------- Run | Scr Mat Min Mat Min Exi Min Mat Sto Fac Low Low Zio Dee Pro Fac Fac Upp Upp Zhi Pro Fac Upp Upp War Pro Res Qua Combat Hostiles Destroyed 244 | . 16 . 17 10 2 27 33 12 22 1 7 1 9 12 8 19 1 . . 8 4 4 . . 14 5 12 Melee 4 | . . . . . 1 . . . . . . . . . . . . . . . . . . . . . 3 Guns 111 | . 16 . 17 8 . 1 7 5 12 1 . . 8 7 5 9 1 . . 2 4 . . . . . 8 Cannons 11 | . . . . 2 . 2 5 . 1 . . . . . 1 . . . . . . . . . . . . AOE 104 | . . . . . 1 24 21 5 8 . 7 . 1 5 2 8 . . . 5 . . . . 12 5 . Classes Destroyed 22 | . 5 1 4 1 . 1 3 1 1 . . 1 1 1 . . 1 . . . . . . . . . 1 Worker 18 | . . . 3 1 . . 2 2 4 . . . . . . 4 . . . . . . . . . 1 1 Builder 9 | . . . 1 . . . 5 . . . . . . . . 3 . . . . . . . . . . . Tunneler 9 | . . 1 1 1 . 2 . . . . . . . . . 3 . . . . . . . . . 1 . Hauler 12 | . 1 . 2 . . . 1 . 3 . . . . . 1 3 . . . . . . . . 1 . . Recycler 7 | . 1 . . 1 . 1 3 . 1 . . . . . . . . . . . . . . . . . . Minesweeper 1 | . . . . . . . . . . . . . . 1 . . . . . . . . . . . . . Operator 4 | . . . . . . . 1 1 1 . . . . . . . . . . . . . . . . . 1 Drone 2 | . . . . . . . . 2 . . . . . . . . . . . . . . . . . . . Watcher 9 | . 1 . 3 . . . 1 1 . . . . . . 2 1 . . . . . . . . . . . Swarmer 58 | . 3 . 4 4 . 13 6 1 3 . 7 . . 1 . . . . . 3 . . . . 8 5 . Grunt 107 | . 13 . 7 . . 12 15 8 13 1 . . . 7 3 10 . . . 5 2 . . . 5 . 6 Brawler 7 | . . . . . . 1 1 . . . . . . 1 1 2 . . . . 1 . . . . . . Duelist 8 | . . . 1 . . 1 3 1 . . . . . 1 1 . . . . . . . . . . . . Protector 2 | . . . . . . . 1 1 . . . . . . . . . . . . . . . . . . . Sentry 23 | . . . 5 2 . . 5 2 4 . . . . 1 1 1 . . . . 1 . . . 1 . . Hunter 8 | . . . . . . . 2 . 1 . . . . 1 . 4 . . . . . . . . . . . Programmer 10 | . . . . . . . . . 1 . . . . . 2 2 . . . . . . . . . . 5 Alpha 7 1 | . . . . . . . . . . . . . . . . . . . . . . . . . . . 1 Z-Light 2 | . . . . . . . . . . . . . 2 . . . . . . . . . . . . . . Samaritan 4 | . . . . . . . . . . . . . . . . . 2 . . . . . . . 2 . . Assembled 17 | . . . . 4 7 . . . . . . . 6 . . . . . . . . . . . . . . Thug 1 | . . . . . . . . . . . . . . . . . . . . . . 1 . . . . . Savage 1 | . . . . . . . . . . . . . . . . . . . . 1 . . . . . . . Butcher 3 | . . . . . . . . . . . . . . . . . . . . . . 3 . . . . . Mutant 2 | . . . . . . . . . . . . 1 . . . . 1 . . . . . . . . . . Best Kill Streak 13 | . 4 1 8 4 1 9 13 9 12 1 4 1 3 11 4 8 1 . . 4 3 2 . . 10 6 3 Combat Bots Only 11 | . 4 . 3 4 1 9 9 9 11 1 4 1 3 11 3 6 1 . . 4 3 2 . . 9 5 3 Max Kills in Single Turn 6 | . 1 1 2 2 6 4 4 3 3 1 3 1 1 3 1 3 1 . . 2 1 1 . . 2 3 1 Gunslinging . | . . . . . . . . . . . . . . . . . . . . . . . . . . . . Exploded 3 | . . . . . 1 3 3 2 3 . 3 . 1 3 1 3 . . . 2 . . . . 1 3 . Melee 1 | . . . . . 1 . . . . . . . . . . . . . . . . . . . . . 1 Uniques/NPCs Destroyed 2 | . . . . . 1 . . . . . . . 1 . . . . . . . . . . . . . . 8R-AWN (-9/Exiles) Z-Imprinter (-7/Deep Caves) Combat | -11 -10 -10 -9 -9 -9 -8 -8 -8 -7 -7 -7 -7 -7 -6 -6 -5 -5 -5 -5 -4 -4 -4 -4 -4 -3 -3 -3 -------- Run | Scr Mat Min Mat Min Exi Min Mat Sto Fac Low Low Zio Dee Pro Fac Fac Upp Upp Zhi Pro Fac Upp Upp War Pro Res Qua Damage Taken 21744 | . 271 95 707 405 460 570 1643 964 1354 17 198 100 1065 1279 659 2024 5 67 . 452 780 389 . 181 920 1253 5886 Core 2953 | . 10 22 100 80 51 88 154 85 145 . 49 20 101 222 91 165 . . . 35 83 46 . 40 144 386 836 Absorbed by Shields 174 | . . . . . . . . . . . . . . . . . . . . . . . . . . . 174 Reduced by Siege Mode 62 | . . . . . . . . . . . . . . . . . . . . . . . . . . . 62 Core Remaining (%) 65 | 100 . 87 . . . 20 . 56 . . . . . 23 89 . . . . 80 . . . . 72 . . Volleys Fired 699 | . 54 12 58 22 13 33 82 32 40 7 4 3 26 30 27 60 27 . . 15 16 12 . 2 22 10 92 Largest 3 | . 2 2 2 2 2 2 2 2 3 3 1 3 3 3 3 3 3 . . 3 3 1 . 1 2 2 1 Hottest 219 | . 40 40 50 86 90 93 119 120 183 84 39 148 219 185 193 158 126 . . 96 123 46 . 110 89 153 88 Shots Fired 1211 | . 107 24 116 44 14 42 106 49 108 21 4 9 72 41 57 143 35 . . 27 46 12 . 2 27 14 91 Gun 938 | . 107 24 116 34 . 6 59 42 79 21 . 9 70 33 38 127 24 . . 20 46 1 . . . 2 80 Cannon 105 | . . . . 10 1 9 22 . 23 . . . . . 17 6 . . . . . . . 2 . 6 9 Launcher 146 | . . . . . 2 27 25 7 6 . 4 . 2 8 2 10 . . . 7 . 11 . . 27 6 2 Special 22 | . . . . . 11 . . . . . . . . . . . 11 . . . . . . . . . . Kinetic 703 | . 107 24 116 34 . 6 40 2 73 21 . 3 44 21 24 85 20 . . 20 33 1 . . . 2 27 Thermal 130 | . . . . . 11 . 19 4 . . . . 16 12 31 6 . . . . . . . 2 . 6 23 Explosive 107 | . . . . . 2 27 25 7 6 . 4 . 2 8 2 10 . . . 2 . . . . 5 5 2 Electromagnetic 260 | . . . . 10 1 9 22 36 29 . . 6 10 . . 42 4 . . 5 13 11 . . 22 1 39 Robot Hit Streak 17 | . 11 13 13 8 12 15 10 11 12 5 4 13 4 7 12 12 17 . . 3 12 2 . . 4 4 10 Robot Miss Streak 7 | . 2 2 7 3 1 2 3 1 4 2 . . 3 7 4 3 2 . . 3 4 2 . . 4 1 2 Penetration Max 1 | . . . . . . . 1 . 1 . . . 1 . . 1 . . . . . . . . . . 1 Secondary Targets 16 | . 4 . 4 . . . . 2 1 . . . 2 . . 2 . . . . 1 . . . . . . Max Gunslinging Chain 1 | . 1 . 1 . . . . 1 1 . . . 1 . . 1 . . . . 1 . . . . . . Capacitor 48 | . . . . . . . . . . . . . . . . . . . . . . . . . . . 48 Shots Hit Robots 852 | . 71 17 80 31 71 21 61 39 78 12 3 9 28 33 39 91 28 . 9 13 29 5 . . 9 5 70 Core Hits 632 | . 37 3 40 17 20 48 86 36 61 2 7 2 18 42 18 69 5 . 3 18 13 7 . . 28 16 36 Critical Hits 53 | . . . 3 . 3 . . 2 . . . . 7 . 4 10 2 . . 3 1 . . . . 1 17 Critical Kills 19 | . . . . . . . . 1 . . . . 1 . 2 4 1 . . 1 1 . . . . 1 7 Critical Parts Destroyed 26 | . . . 3 . 1 . . 1 . . . . 2 . 2 5 1 . . 2 . . . . . . 9 Melee Attacks 120 | . . . 1 . 84 . . 2 . . . . . . . 4 . 1 9 . . 4 . . . . 15 Kinetic 1 | . . . . . . . . . . . . . . . . . . . . . . . . . . . 1 Impact . | . . . . . . . . . . . . . . . . . . . . . . . . . . . . Slashing 101 | . . . 1 . 84 . . 2 . . . . . . . . . . . . . . . . . . 14 Piercing 18 | . . . . . . . . . . . . . . . . 4 . 1 9 . . 4 . . . . . Sneak Attacks . | . . . . . . . . . . . . . . . . . . . . . . . . . . . . Combat Hostiles . | . . . . . . . . . . . . . . . . . . . . . . . . . . . . Follow-up Attacks . | . . . . . . . . . . . . . . . . . . . . . . . . . . . . Damage Inflicted 33585 | . 762 168 1366 530 2048 2427 3698 2179 2851 181 736 224 901 2015 1411 3862 441 . 876 1198 675 462 . . 1640 822 2112 Guns 12950 | . 762 168 1354 402 . 66 959 777 1148 181 . 224 797 635 637 2064 441 . . 234 675 . . . . 18 1408 Cannons 2008 | . . . . 128 . 76 469 . 423 . . . . . 515 98 . . . . . . . . . 148 151 Explosions 15854 | . . . . . 710 2273 2230 1353 1270 . 736 . 104 1380 259 1700 . . . 964 . 462 . . 1640 592 181 Melee 2489 | . . . . . 1327 . . . . . . . . . . . . . 876 . . . . . . . 286 Ramming 273 | . . . 12 . . 12 40 49 10 . . . . . . . . . . . . . . . . 64 86 Kinetic 8804 | . 762 168 1354 402 . 66 741 18 1065 181 . 64 587 329 287 1265 363 . . 234 474 . . . . 18 426 Thermal 2658 | . . . . . 11 . 265 70 . . . . 103 306 865 165 . . . . . . . . 125 148 600 Explosive 12433 | . . . . . 63 2273 2183 1353 1270 . 736 . 104 1380 259 1440 . . . 494 . . . . 148 549 181 Electromagnetic 6928 | . . . . 128 647 76 469 689 506 . . 160 107 . . 992 78 . . 470 201 462 . . 1367 43 533 Impact . | . . . . . . . . . . . . . . . . . . . . . . . . . . . . Slashing 1613 | . . . . . 1327 . . . . . . . . . . . . . . . . . . . . . 286 Piercing 876 | . . . . . . . . . . . . . . . . . . . 876 . . . . . . . . Highest Corruption 29 | . 2 2 1 1 4 4 3 4 2 2 2 2 4 3 1 3 3 . . . . . . . . 2 29 Average Corruption 3 | . 1 2 1 1 1 4 3 3 2 2 2 2 3 3 1 2 2 . . . . . . . . 1 12 Corruption Purged 7 | . . . . . . . . . . . . . 4 . . . 3 . . . . . . . . . . Effects 205 | . 4 10 2 5 20 29 6 12 10 6 4 . 9 5 1 8 8 . . . . . . . . 3 63 Message Errors 61 | . 3 5 1 1 7 9 2 4 1 3 . . 1 1 . 3 3 . . . . . . . . 2 15 Matter Fused 24 | . . . . . 5 5 1 . . . . . 1 . . 1 3 . . . . . . . . . 8 Heat Flow Errors 24 | . . 1 . . 1 4 1 2 . 2 2 . 2 . . 1 1 . . . . . . . . 1 6 Energy Discharges 26 | . 1 3 . 2 1 1 1 3 2 1 1 . 3 2 . 2 1 . . . . . . . . . 2 Parts Rejected 2 | . . . . . 1 . . . . . . . . . . . . . . . . . . . . . 1 Data Loss (minor) 26 | . . 1 1 1 2 5 1 2 2 . 1 . 2 2 1 . . . . . . . . . . . 5 Data Loss (major) 1 | . . . . . . . . . . . . . . . . . . . . . . . . . . . 1 Misfires 1 | . . . . . . . . . . . . . . . . . . . . . . . . . . . 1 Misdirections 5 | . . . . . . . . . . . . . . . . . . . . . . . . . . . 5 Targeting Errors 33 | . . . . 1 3 5 . 1 5 . . . . . . 1 . . . . . . . . . . 17 Weapon Failures 2 | . . . . . . . . . . . . . . . . . . . . . . . . . . . 2 Overload Shots . | . . . . . . . . . . . . . . . . . . . . . . . . . . . . Overflow Damage 929 | . . . . . 21 99 3 120 19 . 32 . . 61 7 34 . . 339 84 . . . . 53 46 11 Projectiles 69 | . . . . . . 7 . . 9 . . . . . 7 . . . . . . . . . . 46 . Explosions 491 | . . . . . 5 92 3 117 10 . 32 . . 61 . 34 . . . 84 . . . . 53 . . Melee 369 | . . . . . 16 . . 3 . . . . . . . . . . 339 . . . . . . . 11 Knockbacks 7 | . . . . . . . . . . . . . . . . . . . . . . . . . . . 7 Impact . | . . . . . . . . . . . . . . . . . . . . . . . . . . . . Kinetic 4 | . . . . . . . . . . . . . . . . . . . . . . . . . . . 4 Secondary 3 | . . . . . . . . . . . . . . . . . . . . . . . . . . . 3 Self-Inflicted Damage 1743 | . . . . . . 209 313 147 89 . . . 60 226 . 218 . . . 87 . . . . 246 32 116 Shots 55 | . . . . . . 9 10 4 3 . . . 1 4 . 8 . . . 4 . . . . 10 . 2 Rammed 27 | . . . 3 . . 3 2 5 1 . . . . . . . . . . . . . . . . 3 10 Targets Rammed 28 | . . . 3 . . 3 2 6 1 . . . . . . . . . . . . . . . . 3 10 Kicked . | . . . . . . . . . . . . . . . . . . . . . . . . . . . . Crushed 1 | . . . . . . . . 1 . . . . . . . . . . . . . . . . . . . Highest Temperature 554 | . 16 146 27 249 165 419 192 296 198 178 233 . 223 138 135 261 205 . . . . . . . . 205 554 Average Temperature 74 | . 5 29 9 103 67 126 48 60 57 56 98 . 64 66 51 30 129 . . . . . . . . 134 241 Received Heat Transfer 3554 | . 114 48 255 54 . 126 405 387 354 9 . . 216 234 147 396 . 12 . 66 159 45 . 36 27 27 437 Effects 11 | . . . . . . 2 . . . . . . . . . 1 . . . . . . . . . . 8 Shutdowns 4 | . . . . . . 1 . . . . . . . . . . . . . . . . . . . . 3 Energy Bleed 3 | . . . . . . . . . . . . . . . . 1 . . . . . . . . . . 2 Matter Decay 2 | . . . . . . . . . . . . . . . . . . . . . . . . . . . 2 Damage (minor) 1 | . . . . . . 1 . . . . . . . . . . . . . . . . . . . . . Damage (major) 1 | . . . . . . . . . . . . . . . . . . . . . . . . . . . 1 Siege Activations 3 | . . . . . . . . . . . . . . . . . . . . . . . . . . . 3 Total Turns 26 | . . . . . . . . . . . . . . . . . . . . . . . . . . . 26 Longest Duration 13 | . . . . . . . . . . . . . . . . . . . . . . . . . . . 13 Robots Corrupted 15 | . . . . . . . . 2 1 . . 1 . . . 2 . . . 1 . 4 . . 3 . 1 Combat Hostiles 14 | . . . . . . . . 2 1 . . 1 . . . 2 . . . 1 . 4 . . 2 . 1 Parts Fried 33 | . . . . . . . 2 2 1 . . 2 . . . 7 . . . 4 1 4 . . 7 . 3 Impact Corruptions 2 | . . . . . . . . 1 . . . . . . . . . . . . . . . . . . 1 Robots Melted . | . . . . . . . . . . . . . . . . . . . . . . . . . . . . Combat Hostiles . | . . . . . . . . . . . . . . . . . . . . . . . . . . . . Parts Melted 4 | . . . . . . . 2 . . . . . . . 1 1 . . . . . . . . . . . Heat Transferred 3359 | . . . . . 99 . 569 150 . . . . 111 333 983 200 . . . . . . . . 50 124 740 Parts Sabotaged . | . . . . . . . . . . . . . . . . . . . . . . . . . . . . Parts Stolen . | . . . . . . . . . . . . . . . . . . . . . . . . . . . . Parts Stripped . | . . . . . . . . . . . . . . . . . . . . . . . . . . . . Power Chain Reactions 6 | . . . . . . . 1 . . . . . . . . 1 . . . . . 1 . . 3 . . Missiles Intercepted . | . . . . . . . . . . . . . . . . . . . . . . . . . . . . Latent Energy Used 200 | . . . . . 200 . . . . . . . . . . . . . . . . . . . . . . LE Corruption 3 | . . . . . 3 . . . . . . . . . . . . . . . . . . . . . . Alert | -11 -10 -10 -9 -9 -9 -8 -8 -8 -7 -7 -7 -7 -7 -6 -6 -5 -5 -5 -5 -4 -4 -4 -4 -4 -3 -3 -3 ------- Run | Scr Mat Min Mat Min Exi Min Mat Sto Fac Low Low Zio Dee Pro Fac Fac Upp Upp Zhi Pro Fac Upp Upp War Pro Res Qua Peak Influence 1133 | . 371 151 449 257 . 589 1133 849 570 . . . . . 342 848 . . . . 177 . . . . 583 500 Initial 385 | . . 108 . 162 . . 211 295 385 . . . . . 22 167 . . . . 70 . . . . 297 327 Average 326 | . 240 79 282 100 . 457 766 624 323 . . . . . 67 495 . . . . 123 . . . . 399 358 Maximum Alert Level 4 | . 1 . 2 1 . 2 4 3 2 . . . . . 1 3 . . . . . . . . . 2 2 Low Security (%) 31 | . 28 100 20 79 . . . . 7 . . . . . 90 21 . . . . 100 . . . . . 1 Level 1 36 | . 71 . 55 20 . 39 17 30 66 . . . . . 9 3 . . . . . . . . . 44 67 Level 2 21 | . . . 24 . . 59 11 20 25 . . . . . . 49 . . . . . . . . . 55 31 Level 3 8 | . . . . . . . 57 49 . . . . . . . 25 . . . . . . . . . . . Level 4 . | . . . . . . . 13 . . . . . . . . . . . . . . . . . . . . Level 5 . | . . . . . . . . . . . . . . . . . . . . . . . . . . . . High Security . | . . . . . . . . . . . . . . . . . . . . . . . . . . . . Max Security . | . . . . . . . . . . . . . . . . . . . . . . . . . . . . Squads Dispatched 50 | . 4 . 3 . . 1 8 5 9 . . . . 1 4 4 . . . . . . . . . 6 5 Investigation 12 | . 3 . 1 . . . 2 2 2 . . . . . . 1 . . . . . . . . . 1 . Extermination 9 | . . . . . . . . . 2 . . . . . 2 1 . . . . . . . . . 1 3 Reinforcement 21 | . 1 . 2 . . 1 2 2 4 . . . . . 2 2 . . . . . . . . . 3 2 Assault 6 | . . . . . . . 4 1 . . . . . 1 . . . . . . . . . . . . . Garrison 2 | . . . . . . . . . 1 . . . . . . . . . . . . . . . . 1 . Intercept . | . . . . . . . . . . . . . . . . . . . . . . . . . . . . Construction Impeded 6 | . . . . . . 1 1 1 1 . . . . . 1 . . . . . . . . . . 1 . Haulers Reinforced 3 | . . . . . . . . . 2 . . . . . . 1 . . . . . . . . . . . Stealth | -11 -10 -10 -9 -9 -9 -8 -8 -8 -7 -7 -7 -7 -7 -6 -6 -5 -5 -5 -5 -4 -4 -4 -4 -4 -3 -3 -3 --------- Run | Scr Mat Min Mat Min Exi Min Mat Sto Fac Low Low Zio Dee Pro Fac Fac Upp Upp Zhi Pro Fac Upp Upp War Pro Res Qua Distress Signals 18 | . 1 . 2 . . . 6 2 2 1 . . . . . 3 . . . . . . . . . 1 . Communications Jammed . | . . . . . . . . . . . . . . . . . . . . . . . . . . . . Distress Signals . | . . . . . . . . . . . . . . . . . . . . . . . . . . . . Times Spotted 443 | . 25 7 38 12 3 29 50 31 28 1 5 1 7 14 12 34 8 1 . 10 5 19 . 10 19 22 52 Peak Tracking Total 14 | . 4 3 7 4 5 6 7 8 8 1 4 1 3 7 3 7 3 1 . 5 3 7 . 14 5 10 12 Tactical Retreats 32 | . . . 2 . 1 4 1 2 1 . . . . . . 3 1 1 . . . 2 . 3 3 5 3 Traps | -11 -10 -10 -9 -9 -9 -8 -8 -8 -7 -7 -7 -7 -7 -6 -6 -5 -5 -5 -5 -4 -4 -4 -4 -4 -3 -3 -3 ------- Run | Scr Mat Min Mat Min Exi Min Mat Sto Fac Low Low Zio Dee Pro Fac Fac Upp Upp Zhi Pro Fac Upp Upp War Pro Res Qua Traps Triggered 15 | . 3 . 2 . . . . 1 2 . . . . . 1 1 . . . . 1 . . . . 3 1 Indirectly . | . . . . . . . . . . . . . . . . . . . . . . . . . . . . Trap Hack Attempts . | . . . . . . . . . . . . . . . . . . . . . . . . . . . . Triggered . | . . . . . . . . . . . . . . . . . . . . . . . . . . . . Disarmed . | . . . . . . . . . . . . . . . . . . . . . . . . . . . . Reprogrammed . | . . . . . . . . . . . . . . . . . . . . . . . . . . . . Reused 4 | . . . . . 3 . . . . . . . . . . . 1 . . . . . . . . . . Traps Extracted . | . . . . . . . . . . . . . . . . . . . . . . . . . . . . Installed 8 | . . . . . 4 . . . . . . . . . 2 1 1 . . . . . . . . . . Triggered 13 | . . . . . . . . . . . 1 . . . . . . . . . . . . 12 . . . Machines | -11 -10 -10 -9 -9 -9 -8 -8 -8 -7 -7 -7 -7 -7 -6 -6 -5 -5 -5 -5 -4 -4 -4 -4 -4 -3 -3 -3 ---------- Run | Scr Mat Min Mat Min Exi Min Mat Sto Fac Low Low Zio Dee Pro Fac Fac Upp Upp Zhi Pro Fac Upp Upp War Pro Res Qua Machines Disabled 56 | . 1 . 1 . 2 2 7 2 3 . . 1 3 1 10 10 1 . . . 1 1 . 1 . 1 8 Max in Single Turn 6 | . 1 . 1 . 2 1 2 1 2 . . 1 1 1 5 6 1 . . . 1 1 . 1 . 1 1 Garrison Access 4 | . . . . . . . . . 1 . . . . . 1 1 . . . . 1 . . . . . . Machines Sabotaged . | . . . . . . . . . . . . . . . . . . . . . . . . . . . . Garrisons Compromised . | . . . . . . . . . . . . . . . . . . . . . . . . . . . . Overloaded Fab Kills . | . . . . . . . . . . . . . . . . . . . . . . . . . . . . Fab Network Shutdowns . | . . . . . . . . . . . . . . . . . . . . . . . . . . . . Hacking | -11 -10 -10 -9 -9 -9 -8 -8 -8 -7 -7 -7 -7 -7 -6 -6 -5 -5 -5 -5 -4 -4 -4 -4 -4 -3 -3 -3 --------- Run | Scr Mat Min Mat Min Exi Min Mat Sto Fac Low Low Zio Dee Pro Fac Fac Upp Upp Zhi Pro Fac Upp Upp War Pro Res Qua Machines Accessed 71 | . 6 . 2 . 2 . 3 4 7 3 . . . . 5 6 . 1 8 1 1 4 . 7 . 3 8 Terminals 38 | . 4 . 2 . . . 3 3 6 . . . . . 4 5 . . . 1 . . . . . 3 7 Fabricators . | . . . . . . . . . . . . . . . . . . . . . . . . . . . . Repair Stations 2 | . . . . . . . . 1 . . . . . . . . . . . . . . . . . . 1 Recycling Units 2 | . 2 . . . . . . . . . . . . . . . . . . . . . . . . . . Scanalyzers . | . . . . . . . . . . . . . . . . . . . . . . . . . . . . Garrison Access 4 | . . . . . . . . . 1 . . . . . 1 1 . . . . 1 . . . . . . Total Hacks 204 | . 12 . 9 . 2 . 17 9 14 6 . . . . 9 15 . 1 47 1 2 10 . 10 . 12 28 Successful 142 | . 4 . 5 . 2 . 6 5 6 6 . . . . 4 6 . 1 47 1 1 10 . 10 . 8 20 Failed 61 | . 7 . 4 . . . 11 4 8 . . . . . 5 9 . . . . 1 . . . . 4 8 Catastrophic 10 | . 1 . 2 . . . . . 4 . . . . . 1 2 . . . . . . . . . . . Database Lockouts 1 | . 1 . . . . . . . . . . . . . . . . . . . . . . . . . . Manual 81 | . 13 . 10 . 1 . 15 2 5 . . 5 . . 2 10 . . . . . . . . . 7 11 Terminals 114 | . 8 . 9 . . . 17 7 13 . . . . . 8 14 . . . 1 . . . . . 12 25 Fabricators . | . . . . . . . . . . . . . . . . . . . . . . . . . . . . Repair Stations 5 | . . . . . . . . 2 . . . . . . . . . . . . . . . . . . 3 Recycling Units 4 | . 4 . . . . . . . . . . . . . . . . . . . . . . . . . . Scanalyzers . | . . . . . . . . . . . . . . . . . . . . . . . . . . . . Garrison Access 5 | . . . . . . . . . 1 . . . . . 1 1 . . . . 2 . . . . . . Terminal Hacks 111 | . 1 . 2 . 2 . 4 3 4 6 . . . . 1 1 . 1 47 1 . 10 . 10 . 5 13 Record 68 | . . . 1 . 1 . . . 1 4 . . . . . . . . 35 1 . 8 . 9 . . 8 Part Schematic 4 | . . . . . . . . . . . . . . . . . . . 4 . . . . . . . . Robot Analysis 7 | . 1 . 1 . . . 1 . . . . . . . . . . . 4 . . . . . . . . Prototype ID Bank 4 | . . . . . . . . . . . . . . . . . . . 4 . . . . . . . . Open Door 10 | . . . . . . . . 2 . 2 . . . . . . . 1 . . . 2 . 1 . 1 1 Branch Access Points 5 | . . . . . . . 1 . 1 . . . . . 1 1 . . . . . . . . . 1 . Terminal Index 1 | . . . . . . . . . . . . . . . . . . . . . . . . . . . 1 Alert Level 5 | . . . . . . . . 1 1 . . . . . . . . . . . . . . . . 1 2 Unreport Threat 6 | . . . . . . . 2 . 1 . . . . . . . . . . . . . . . . 2 1 EX-Prototype ID Bank 1 | . . . . . 1 . . . . . . . . . . . . . . . . . . . . . . Fabricator Hacks . | . . . . . . . . . . . . . . . . . . . . . . . . . . . . Repair Station Hacks 4 | . . . . . . . . 2 . . . . . . . . . . . . . . . . . . 2 Scan Component 2 | . . . . . . . . 1 . . . . . . . . . . . . . . . . . . 1 Repair 2 | . . . . . . . . 1 . . . . . . . . . . . . . . . . . . 1 Recycling Unit Hacks . | . . . . . . . . . . . . . . . . . . . . . . . . . . . . Scanalyzer . | . . . . . . . . . . . . . . . . . . . . . . . . . . . . Garrison Access Hacks 4 | . . . . . . . . . 1 . . . . . 1 1 . . . . 1 . . . . . . Seal Access 4 | . . . . . . . . . 1 . . . . . 1 1 . . . . 1 . . . . . . Unauthorized Hacks 23 | . 3 . 3 . . . 2 . 1 . . . . . 2 4 . . . . . . . . . 3 5 Terminals 21 | . 1 . 3 . . . 2 . 1 . . . . . 2 4 . . . . . . . . . 3 5 Track 12 | . 1 . 2 . . . 1 . . . . . . . 1 2 . . . . . . . . . 2 3 Botnet 9 | . . . 1 . . . 1 . 1 . . . . . 1 2 . . . . . . . . . 1 2 Fabricators . | . . . . . . . . . . . . . . . . . . . . . . . . . . . . Repair Stations . | . . . . . . . . . . . . . . . . . . . . . . . . . . . . Recycling Units 2 | . 2 . . . . . . . . . . . . . . . . . . . . . . . . . . Tunnel 2 | . 2 . . . . . . . . . . . . . . . . . . . . . . . . . . Scanalyzers . | . . . . . . . . . . . . . . . . . . . . . . . . . . . . Garrison Access . | . . . . . . . . . . . . . . . . . . . . . . . . . . . . Data Cores Recovered 1 | . . . . . . . . . 1 . . . . . . . . . . . . . . . . . . Used . | . . . . . . . . . . . . . . . . . . . . . . . . . . . . Hacking Detections 34 | . 5 . 2 . . . 3 2 6 . . . . . 3 5 . . . . 1 . . . . 2 5 Full Trace Events 7 | . 1 . 1 . . . 2 . 2 . . . . . . 1 . . . . . . . . . . . Feedback Events . | . . . . . . . . . . . . . . . . . . . . . . . . . . . . Feedback Blocked . | . . . . . . . . . . . . . . . . . . . . . . . . . . . . Robot Schematics Acquired . | . . . . . . . . . . . . . . . . . . . . . . . . . . . . Robots Built . | . . . . . . . . . . . . . . . . . . . . . . . . . . . . Matter . | . . . . . . . . . . . . . . . . . . . . . . . . . . . . Time . | . . . . . . . . . . . . . . . . . . . . . . . . . . . . Total Robot Build Rating . | . . . . . . . . . . . . . . . . . . . . . . . . . . . . Part Schematics Acquired 4 | . . . . . . . . . . . . . . . . . . . 4 . . . . . . . . Parts Built . | . . . . . . . . . . . . . . . . . . . . . . . . . . . . Matter . | . . . . . . . . . . . . . . . . . . . . . . . . . . . . Time . | . . . . . . . . . . . . . . . . . . . . . . . . . . . . Total Part Build Rating . | . . . . . . . . . . . . . . . . . . . . . . . . . . . . Parts Repaired 2 | . . . . . . . . 1 . . . . . . . . . . . . . . . . . . 1 Time 82 | . . . . . . . . 56 . . . . . . . . . . . . . . . . . . 26 Parts Recycled . | . . . . . . . . . . . . . . . . . . . . . . . . . . . . Recycled Matter . | . . . . . . . . . . . . . . . . . . . . . . . . . . . . Retrieved Matter . | . . . . . . . . . . . . . . . . . . . . . . . . . . . . Retrieved Components . | . . . . . . . . . . . . . . . . . . . . . . . . . . . . Parts Scanalyzed . | . . . . . . . . . . . . . . . . . . . . . . . . . . . . Part Schematics Acquired . | . . . . . . . . . . . . . . . . . . . . . . . . . . . . Parts Damaged . | . . . . . . . . . . . . . . . . . . . . . . . . . . . . Bothacking | -11 -10 -10 -9 -9 -9 -8 -8 -8 -7 -7 -7 -7 -7 -6 -6 -5 -5 -5 -5 -4 -4 -4 -4 -4 -3 -3 -3 ------------ Run | Scr Mat Min Mat Min Exi Min Mat Sto Fac Low Low Zio Dee Pro Fac Fac Upp Upp Zhi Pro Fac Upp Upp War Pro Res Qua Used RIF Installer . | . . . . . . . . . . . . . . . . . . . . . . . . . . . . Robots Hacked . | . . . . . . . . . . . . . . . . . . . . . . . . . . . . Non-combat . | . . . . . . . . . . . . . . . . . . . . . . . . . . . . Combat . | . . . . . . . . . . . . . . . . . . . . . . . . . . . . Robot Hacks Applied . | . . . . . . . . . . . . . . . . . . . . . . . . . . . . Relay Couplers Released . | . . . . . . . . . . . . . . . . . . . . . . . . . . . . Robots Rewired 5 | . . . . . . . . . . . . . . 1 . . 4 . . . . . . . . . . Allies Hacked . | . . . . . . . . . . . . . . . . . . . . . . . . . . . . Hacks Repelled . | . . . . . . . . . . . . . . . . . . . . . . . . . . . . Allies | -11 -10 -10 -9 -9 -9 -8 -8 -8 -7 -7 -7 -7 -7 -6 -6 -5 -5 -5 -5 -4 -4 -4 -4 -4 -3 -3 -3 -------- Run | Scr Mat Min Mat Min Exi Min Mat Sto Fac Low Low Zio Dee Pro Fac Fac Upp Upp Zhi Pro Fac Upp Upp War Pro Res Qua Total Allies 23 | . . 3 . 2 . . . 10 . . . . . 1 . . 4 . . . . 3 . . . . . Largest Group 9 | . . 3 1 2 1 . . 9 . . . . . 1 . . 4 3 3 3 . 3 . . . . . Highest-Rated Group 155 | . . 40 16 53 31 . . 155 . . . . . 32 . . 113 82 82 82 . 138 . . . . . Highest-Rated Ally 46 | . . 16 16 31 31 . . 29 . . . . . 32 . . 31 31 31 31 . 46 . . . . . Total Orders 9 | . . . . . . . . 2 . . . . . . 1 . . 4 . 2 . . . . . . . STAY 4 | . . . . . . . . . . . . . . . . . . 3 . 1 . . . . . . . FOLLOW 2 | . . . . . . . . . . . . . . . . . . 1 . 1 . . . . . . . EXPLORE 3 | . . . . . . . . 2 . . . . . . 1 . . . . . . . . . . . . Ally Attacks 186 | . . 42 15 4 . . . 83 . . . . . 2 . . 18 . . 11 . 11 . . . . . Total Damage 2582 | . . 448 174 83 . . . 1089 . . . . . 92 . . 271 . . 141 . 284 . . . . . Kills 42 | . . 7 8 3 . . . 16 . . . . . 1 . . 5 . . 2 . . . . . . . Allies Corrupted . | . . . . . . . . . . . . . . . . . . . . . . . . . . . . Allies Melted . | . . . . . . . . . . . . . . . . . . . . . . . . . . . . Intel | -11 -10 -10 -9 -9 -9 -8 -8 -8 -7 -7 -7 -7 -7 -6 -6 -5 -5 -5 -5 -4 -4 -4 -4 -4 -3 -3 -3 ------- Run | Scr Mat Min Mat Min Exi Min Mat Sto Fac Low Low Zio Dee Pro Fac Fac Upp Upp Zhi Pro Fac Upp Upp War Pro Res Qua Robot Analysis Total 7 | . 1 . 1 . . . 1 . . . . . . . . . . . 4 . . . . . . . . Derelict Logs Recovered 14 | . . 1 . 1 . . . . . 1 1 . . 2 . . 3 1 . 2 . 1 1 . . . . Drone Launches 18 | . . . . . . . . 16 . . . . . . 2 . . . . . . . . . . . . Drone Recoveries 2 | . . . . . . . . 2 . . . . . . . . . . . . . . . . . . . Exploration | -11 -10 -10 -9 -9 -9 -8 -8 -8 -7 -7 -7 -7 -7 -6 -6 -5 -5 -5 -5 -4 -4 -4 -4 -4 -3 -3 -3 ------------- Run | Scr Mat Min Mat Min Exi Min Mat Sto Fac Low Low Zio Dee Pro Fac Fac Upp Upp Zhi Pro Fac Upp Upp War Pro Res Qua Turns Passed 23967 | . 1014 910 1478 1183 1805 1089 813 629 1415 756 384 1455 1555 585 972 1230 732 510 562 761 310 874 260 837 234 330 1284 Spaces Moved 14488 | 1 518 531 685 531 705 537 287 245 809 538 284 1099 579 262 639 640 378 426 382 498 219 933 373 1115 231 353 690 Core . | . . . . . . . . . . . . . . . . . . . . . . . . . . . . Treads 5231 | . 510 531 685 531 705 537 287 245 245 . . . 457 134 . 260 . . . . . . . . . . 104 Legs 41 | 1 8 . . . . . . . . . . . . 12 . . . . . . . . . . . . 20 Wheels 4695 | . . . . . . . . . 564 538 284 1099 122 116 639 380 378 426 149 . . . . . . . . Hover 4521 | . . . . . . . . . . . . . . . . . . . 233 498 219 933 373 1115 231 353 566 Flight . | . . . . . . . . . . . . . . . . . . . . . . . . . . . . Fastest Speed 55 | 120 120 160 160 200 190 190 200 200 130 130 130 130 130 130 125 116 116 116 116 142 68 68 68 67 67 67 55 Average Speed 137 | 120 159 160 180 205 206 190 204 201 152 130 130 130 194 175 132 149 116 116 128 142 110 72 68 68 67 79 116 Slowest Speed 270 | 120 160 160 200 210 210 190 210 205 205 130 130 130 270 210 140 240 116 116 142 142 142 115 68 115 86 118 240 Overloaded Moves . | . . . . . . . . . . . . . . . . . . . . . . . . . . . . Propulsion Burnouts . | . . . . . . . . . . . . . . . . . . . . . . . . . . . . Robots Hopped . | . . . . . . . . . . . . . . . . . . . . . . . . . . . . Cave-ins Triggered . | . . . . . . . . . . . . . . . . . . . . . . . . . . . . Teleports 2 | . . . . . . . . . . . . . . . . . . . . . . . . . . . 2 Exploration Rate (%) 57 | 2 92 95 61 91 68 94 37 64 24 71 50 82 72 45 25 17 89 62 62 66 5 76 54 87 42 18 70 Regions Visited 27 Branch Regions 19 Pre-discovered Areas 12 | . 2 1 . . 1 . . . . 1 1 1 . 1 . . . . 3 . . 1 . . . . . Known Exits Taken 12 | . . . . . . 1 1 . 1 1 1 . . 1 . 1 1 . . 1 1 . . . 1 1 . Unknown Exits Taken 15 | 1 1 1 1 1 1 . . 1 . . . 1 1 . 1 . . 1 1 . . 1 1 1 . . . Scrap Searched 25 | . . 2 . 1 . 3 . . . 6 1 3 . 1 . . 2 2 . 1 . 2 1 . . . . Spaces Dug 122 | . . . 1 . . 39 54 2 . . . . . . 2 8 . 1 . . . 3 . . . 12 . Terrain Destroyed 1055 | . . . 1 . 31 231 229 130 69 . 33 . 21 51 44 67 3 1 . 20 . 3 . . 69 40 12 Melee 8 | . . . 1 . . . . 2 . . . . . . . 2 . 1 . . . 2 . . . . . Projectile 28 | . . . . . . . . 1 . . . . 1 1 9 5 3 . . 4 . 1 . . . 2 1 AOE 1019 | . . . . . 31 231 229 127 69 . 33 . 20 50 35 60 . . . 16 . . . . 69 38 11 Terrain Rammed . | . . . . . . . . . . . . . . . . . . . . . . . . . . . . Walls Destroyed . | . . . . . . . . . . . . . . . . . . . . . . . . . . . . Machines Disabled . | . . . . . . . . . . . . . . . . . . . . . . . . . . . . Actions | -11 -10 -10 -9 -9 -9 -8 -8 -8 -7 -7 -7 -7 -7 -6 -6 -5 -5 -5 -5 -4 -4 -4 -4 -4 -3 -3 -3 --------- Run | Scr Mat Min Mat Min Exi Min Mat Sto Fac Low Low Zio Dee Pro Fac Fac Upp Upp Zhi Pro Fac Upp Upp War Pro Res Qua Total 17255 | . 615 569 814 582 867 580 429 321 919 584 295 1116 958 346 711 800 641 440 436 526 249 1118 379 1189 281 393 1097 Wait 1024 | . 5 22 10 . 4 . 14 2 22 18 1 . 301 6 10 17 227 4 5 . 2 107 6 46 13 2 180 Move 14461 | . 517 530 684 530 704 536 286 244 808 537 283 1098 578 261 638 639 377 425 381 497 218 932 372 1114 230 352 690 Hop . | . . . . . . . . . . . . . . . . . . . . . . . . . . . . Pick Up 198 | . 14 2 21 7 16 2 17 8 8 6 . 6 10 4 8 13 . 4 7 1 1 17 . 5 2 2 17 Fast Attach 114 | . 5 1 1 2 3 1 3 4 6 3 3 . 9 . 9 12 . 1 9 1 3 . . 5 3 1 29 Attach 124 | . 2 . 4 2 3 1 6 4 5 4 . 1 6 4 2 12 . 2 5 1 4 17 1 1 1 7 29 Detach 37 | . . . . . . . . . 1 . . . 4 . . 3 . . 2 . 1 11 . 1 . 3 11 Swap 165 | . 4 1 14 9 13 2 10 6 13 1 1 6 8 3 5 23 8 1 3 8 2 2 . 7 4 3 8 Drop 230 | . 14 1 18 10 23 2 9 6 13 8 3 2 16 . 10 16 1 2 15 3 2 16 . 8 6 10 16 Fire 699 | . 54 12 58 22 13 33 82 32 40 7 4 3 26 30 27 60 27 . . 15 16 12 . 2 22 10 92 Melee 120 | . . . 1 . 84 . . 2 . . . . . . . 4 . 1 9 . . 4 . . . . 15 Ram 13 | . . . . . . . . . . . . . . . . . . . . . . . . . . 3 10 Kick . | . . . . . . . . . . . . . . . . . . . . . . . . . . . . Crush 15 | . . . 3 . . 3 2 6 1 . . . . . . . . . . . . . . . . . . Escape Stasis 2 | . . . . . . . . . 2 . . . . . . . . . . . . . . . . . . Rewire 38 | . . . . . . . . . . . . . . 38 . . . . . . . . . . . . . Trap 8 | . . . . . 4 . . . . . . . . . 2 1 1 . . . . . . . . . . Miscellaneous 7 | . . . . . . . . 7 . . . . . . . . . . . . . . . . . . . Route ------- -11/Scrapyard -10/Materials (discovered 4 exits: *Mat x3 / [*Min]) -10/Mines -9/Materials (discovered 3 exits: *Mat x2 / [*Min]) -9/Mines (discovered 4 exits: *Mat x2 / *Exi / *Zio) -9/Exiles -8/Mines (discovered 2 exits: *Mat x2) -8/Materials (discovered 3 exits: *Fac / *Sto x2) -8/Storage -7/Factory (discovered 4 exits: *Fac x2 / *Low x2) -7/Lower Caves -7/Lower Caves -7/Zion (discovered 2 exits: [*Dee] / [*Pro]) -7/Deep Caves -6/Proximity Caves -6/Factory (discovered 3 exits: *Fac / Low x2) -5/Factory (discovered 2 exits: *Upp x2) -5/Upper Caves -5/Upper Caves (discovered 2 exits: Fac / *Zhi) -5/Zhirov -4/Proximity Caves -4/Factory (discovered 4 exits: Res / *Upp / Ext / Arm) -4/Upper Caves -4/Upper Caves (discovered 2 exits: Res / *War) -4/Warlord -3/Proximity Caves -3/Research (discovered 2 exits: *Qua x2) -3/Quarantine (discovered 1 exit: [*Res]) History --------- Turn | Location | Event 1 | -11/Scrapyard | Discovered new exit (range 0) 1 | -11/Scrapyard | Entered Materials 200 | -10/Materials | Discovered new exit (range 5) 303 | -10/Materials | Build established: Mutant 419 | -10/Materials | Central database locked down 453 | -10/Materials | Discovered new exit (range 4) 680 | -10/Materials | Discovered new exit (range 16) 989 | -10/Materials | Discovered new exit (range 9) 1015 | -10/Materials | Entered Mines 1190 | -10/Mines | Learned Materials emergency access door positions 1210 | -10/Mines | Learned location of Storage (-8) 1376 | -10/Mines | Assisted by bots powering up and referring to "LRC-V3" 1597 | -10/Mines | Discovered new exit (range 11) 1925 | -10/Mines | Entered Materials 1925 | -9/Materials | Accompanied by 1 ally 1925 | -9/Materials | Evolved 2 slots: Utility x2 2459 | -9/Materials | Discovered new exit (range 14) 2802 | -9/Materials | Discovered new exit (range 15) 3377 | -9/Materials | Discovered new exit (range 14) 3403 | -9/Materials | Entered Mines 3513 | -9/Mines | Discovered new exit (range 7) 3642 | -9/Mines | Identified exit to Materials 3645 | -9/Mines | Build established: Hauler-Mutant 3689 | -9/Mines | Deemed a non-threat by the Exiles lab entrance 3689 | -9/Mines | Discovered new exit (range 5) 3791 | -9/Mines | Found a hidden stash of uninstalled traps 3812 | -9/Mines | Assembled infested the area 3923 | -9/Mines | Found a damaged Exp. Sensor Array with a note attached 3928 | -9/Mines | Found Prototype Device 3952 | -9/Mines | Identified Exp. Sensor Array 3959 | -9/Mines | A Derelict revealed a hidden shortcut to a safe place 4586 | -9/Mines | Entered Exiles 4586 | -9/Exiles | Accompanied by 1 ally 4616 | -9/Exiles | Led the pair of lost Derelicts to a safe place 4820 | -9/Exiles | Met 8R-AWN 4858 | -9/Exiles | Met EX-HEX 4942 | -9/Exiles | Met EX-DEC 4958 | -9/Exiles | Learned location of Zion (-7) 5235 | -9/Exiles | Met EX-BIN 5258 | -9/Exiles | Aligned with FarCom system 5260 | -9/Exiles | Given EX-Vault access code 5309 | -9/Exiles | Opened EX-Vault 5357 | -9/Exiles | Warned to stay clear of 0b10 Research branches 5604 | -9/Exiles | Found Latent Energy Streamer 5782 | -9/Exiles | Discovered new exit (range 14) 5905 | -9/Exiles | Attacked by the Exiles 6110 | -9/Exiles | Build established: Mutant 6187 | -9/Exiles | Core integrity fell below 50% 6222 | -9/Exiles | Destroyed 8R-AWN 6270 | -9/Exiles | Found Prototype Ballistic Gun 6290 | -9/Exiles | Found Prototype Processor 6293 | -9/Exiles | Identified 8R-AWN's Boregun 6293 | -9/Exiles | Found 8R-AWN's Boregun 6391 | -9/Exiles | Entered Mines 6448 | -8/Mines | Destroyed 9 combat bots 6721 | -8/Mines | Discovered exit to Materials (range 10) 7355 | -8/Mines | Discovered exit to Materials (range 8) 7480 | -8/Mines | Entered Materials 7480 | -8/Materials | Evolved 2 slots: Utility x2 7792 | -8/Materials | Build established: Hauler-Mutant 7862 | -8/Materials | Discovered new exit (range 16) 7880 | -8/Materials | First assault squad dispatched 8033 | -8/Materials | Destroyed 9 combat bots 8189 | -8/Materials | Identified exit to Storage 8191 | -8/Materials | Discovered new exit (range 16) 8293 | -8/Materials | Entered Storage 8480 | -8/Storage | Assisted by bots powering up and referring to "LRC-V3" 8567 | -8/Storage | Repaired Rnf. Fission Core? 8599 | -8/Storage | Discovered new exit (range 39) 8693 | -8/Storage | First assault squad dispatched 8830 | -8/Storage | Lost 3 parts (1n2u) 8833 | -8/Storage | Destroyed 9 combat bots 8922 | -8/Storage | Entered Factory 8922 | -7/Factory | Evolved 2 slots: Propulsion x1, Weapon x1 9076 | -7/Factory | Discovered new exit (range 9) 9092 | -7/Factory | Identified exit to Factory 9311 | -7/Factory | Build established: Hauler-Tank 9611 | -7/Factory | Build established: Hauler-Skirmisher 9979 | -7/Factory | Discovered exit to Factory (range 7) 10089 | -7/Factory | Identified exit to Lower Caves 10249 | -7/Factory | Garrison activated, responded to threat 10290 | -7/Factory | Lost 3 parts (1u2w) 10292 | -7/Factory | Destroyed 11 combat bots 10337 | -7/Factory | Entered Lower Caves 10547 | -7/Lower Caves | Found Prototype Device 10614 | -7/Lower Caves | Learned 4 Factory zone layouts 10759 | -7/Lower Caves | Learned Armory security intel 11018 | -7/Lower Caves | Discovered new exit (range 10) 11092 | -7/Lower Caves | Identified exit to Lower Caves 11093 | -7/Lower Caves | Entered another Lower Caves area 11277 | -7/Lower Caves | Encountered a Warlord checkpoint 11391 | -7/Lower Caves | Discovered new exit (range 16) 11429 | -7/Lower Caves | Identified exit to Zion 11477 | -7/Lower Caves | Entered Zion 11514 | -7/Zion | Build established: Hauler-Mutant 11537 | -7/Zion | System corruption cleaned by Quarantine Array 11653 | -7/Zion | Discovered new exit (range 14) 11814 | -7/Zion | Acquired unknown access codes intercepted by a Zionite 11851 | -7/Zion | Given A8's code to call for help 12095 | -7/Zion | Visited the Megawrench Repair Shop 12421 | -7/Zion | Megawrench repaired 11 parts 12676 | -7/Zion | Found CR-A16's Pointy Stick 12716 | -7/Zion | Build established: Hauler-Gunner 12882 | -7/Zion | Opened final containment barrier to the Deep Caves 12901 | -7/Zion | Attacked by Zionites 12926 | -7/Zion | Discovered new exit (range 5) 12929 | -7/Zion | Saw the warning signs outside the Deep Caves entrance 12932 | -7/Zion | Entered Deep Caves 13430 | -7/Deep Caves | Identified Exp. Targeting Computer 13479 | -7/Deep Caves | Attacked by Z-Imprinter 13513 | -7/Deep Caves | Destroyed Z-Imprinter 13596 | -7/Deep Caves | Found Prototype Device 13596 | -7/Deep Caves | Identified Zio. Metafield Generator 13609 | -7/Deep Caves | Found Prototype Protection 13609 | -7/Deep Caves | Identified Zio. Weapon Casing 13628 | -7/Deep Caves | Found Zio. Weapon Casing 13798 | -7/Deep Caves | Z-Facility disabled 13879 | -7/Deep Caves | Build established: Scavenger-Gunner 14468 | -7/Deep Caves | Discovered new exit (range 7) 14487 | -7/Deep Caves | Entered Proximity Caves 14670 | -6/Proximity Caves | Learned Factory stockpile data 14764 | -6/Proximity Caves | Attracted the attention of an 0b10 outpost 14787 | -6/Proximity Caves | Core integrity fell below 50% 14834 | -6/Proximity Caves | Lost 6 parts (1n2u3w) 14851 | -6/Proximity Caves | Destroyed 11 combat bots 14906 | -6/Proximity Caves | Discovered exit to Factory (range 8) 15054 | -6/Proximity Caves | Build established: Hauler-Mutant 15072 | -6/Proximity Caves | Entered Factory 15072 | -6/Factory | Evolved 2 slots: Power x1, Utility x1 15607 | -6/Factory | Identified exit to Lower Caves 16011 | -6/Factory | Discovered new exit (range 15) 16044 | -6/Factory | Entered another Factory area 16044 | -5/Factory | Evolved 2 slots: Utility x2 16094 | -5/Factory | Discovered new exit (range 16) 16425 | -5/Factory | Lost 4 parts (1p1n2w) 16591 | -5/Factory | Found Prototype Processor 16591 | -5/Factory | Identified Exp. Terrain Scan Processor 16594 | -5/Factory | Found Exp. Terrain Scan Processor 16600 | -5/Factory | Found Exp. Terrain Scan Processor 16609 | -5/Factory | Found Exp. Terrain Scan Processor 16673 | -5/Factory | Build established: Scavenger-Mutant 16785 | -5/Factory | Identified exit to Upper Caves 16979 | -5/Factory | Build established: Scavenger-Gunner 17274 | -5/Factory | Entered Upper Caves 17342 | -5/Upper Caves | Identified exit to Upper Caves 17452 | -5/Upper Caves | Build established: Scavenger-Mutant 17473 | -5/Upper Caves | Learned Factory stockpile data 17540 | -5/Upper Caves | Attacked by a delusional Derelict stockpiling Unaware 17693 | -5/Upper Caves | Learned 8 Factory zone layouts 18006 | -5/Upper Caves | Entered another Upper Caves area 18006 | -5/Upper Caves | Accompanied by 3 allies 18019 | -5/Upper Caves | Discovered new exit (range 16) 18093 | -5/Upper Caves | Learned 12 Factory zone layouts 18097 | -5/Upper Caves | Found Alien Artifact 18098 | -5/Upper Caves | Identified Core Expander 18098 | -5/Upper Caves | Installed Core Expander, added new Utility slot 18428 | -5/Upper Caves | Discovered new exit (range 18) 18490 | -5/Upper Caves | Spotted B-75 Beast 18516 | -5/Upper Caves | Entered Zhirov 18516 | -5/Zhirov | Accompanied by 3 allies 18516 | -5/Zhirov | Discovered new exit (range 3) 18537 | -5/Zhirov | Met Zhirov 18577 | -5/Zhirov | Learned location of Quarantine (-3) 18577 | -5/Zhirov | Learned location of Testing (-2) 18577 | -5/Zhirov | Learned location of Command (-1) 18584 | -5/Zhirov | Zhirov requested help retrieving the SGEMP Prototype 18636 | -5/Zhirov | Found Alien Artifact 18636 | -5/Zhirov | Identified Integrated Dissipator 18636 | -5/Zhirov | Installed Integrated Dissipator, increased core heat dissipation (+20) 18685 | -5/Zhirov | Identified Heart of Steel 18793 | -5/Zhirov | Found Alien Artifact 19078 | -5/Zhirov | Entered Proximity Caves 19078 | -4/Proximity Caves | Accompanied by 3 allies 19127 | -4/Proximity Caves | Build established: Hauler-Mutant 19374 | -4/Proximity Caves | Identified exit to Factory 19803 | -4/Proximity Caves | Learned Research interactive machine intel 19838 | -4/Proximity Caves | Build established: Hauler-Tank 19839 | -4/Proximity Caves | Entered Factory 19839 | -4/Factory | Evolved 2 slots: Propulsion x2 19840 | -4/Factory | Identified exit to Armory 19841 | -4/Factory | Identified exit to Upper Caves 19841 | -4/Factory | Identified exit to Extension 19841 | -4/Factory | Identified exit to Research 19891 | -4/Factory | Found Quantum Capacitor 20070 | -4/Factory | Lost 4 parts (2u2w) 20149 | -4/Factory | Entered Upper Caves 20162 | -4/Upper Caves | A Commander dispatched an escort 20179 | -4/Upper Caves | Learned 8 Factory zone layouts 20179 | -4/Upper Caves | Learned Research emergency access door positions 20179 | -4/Upper Caves | Learned Extension emergency access door positions 20179 | -4/Upper Caves | Learned Armory emergency access door positions 20179 | -4/Upper Caves | Learned Extension terminal intel 20179 | -4/Upper Caves | Learned Research garrison access intel 20573 | -4/Upper Caves | Encountered a Warlord checkpoint 20673 | -4/Upper Caves | Ambushed by wild Derelicts 20765 | -4/Upper Caves | Build established: Hauler-Mutant 20807 | -4/Upper Caves | Discovered new exit (range 18) 20832 | -4/Upper Caves | Found Alien Artifact 21000 | -4/Upper Caves | Attracted the attention of an 0b10 checkpoint 21023 | -4/Upper Caves | Entered another Upper Caves area 21027 | -4/Upper Caves | Discovered exit to Research (range 12) 21063 | -4/Upper Caves | Learned Research terminal intel 21119 | -4/Upper Caves | Encountered a Warlord checkpoint 21126 | -4/Upper Caves | Discovered new exit (range 8) 21283 | -4/Upper Caves | Entered Warlord 21645 | -4/Warlord | Warlord's base attacked by MAIN.C 21734 | -4/Warlord | Met Warlord 21871 | -4/Warlord | Found Prototype Reactor 21871 | -4/Warlord | Identified Vortex Chain Reactor 21879 | -4/Warlord | Found Prototype Device 21879 | -4/Warlord | Identified Exp. Focal Shield 21885 | -4/Warlord | Found Prototype Processor 21885 | -4/Warlord | Identified Exp. Target Analyzer 21995 | -4/Warlord | Warlord forces counterattacked 22004 | -4/Warlord | Spotted Striker 22040 | -4/Warlord | Spotted B-86 Titan 22040 | -4/Warlord | Spotted B-90 Cyclops 22045 | -4/Warlord | Spotted Executioner 22109 | -4/Warlord | Discovered new exit (range 18) 22120 | -4/Warlord | Entered Proximity Caves 22162 | -3/Proximity Caves | Found Imp. Powered Armor 22172 | -3/Proximity Caves | Destroyed 9 combat bots 22210 | -3/Proximity Caves | Attracted the attention of an 0b10 checkpoint 22349 | -3/Proximity Caves | Discovered exit to Research (range 8) 22354 | -3/Proximity Caves | Entered Research 22354 | -3/Research | Evolved 2 slots: Utility x2 22356 | -3/Research | Loaded intel: 38 interactive machine locations 22357 | -3/Research | Loaded intel: 19 terminal locations 22358 | -3/Research | Loaded intel: 3 garrison access locations 22373 | -3/Research | Identified exit to Quarantine 22389 | -3/Research | Garrison activated, responded to threat 22551 | -3/Research | Spotted B-86 Titan 22590 | -3/Research | Identified Dimensional Node Initializer 22590 | -3/Research | Initialized slip node 22623 | -3/Research | Lost 3 parts (2n1u) 22684 | -3/Research | Entered Quarantine 22731 | -3/Quarantine | Repaired Exp. Propulsion Shielding 22809 | -3/Quarantine | Build established: Hacker-Mutant 22875 | -3/Quarantine | Found Quantum Capacitor 22932 | -3/Quarantine | Found Alien Artifact 23255 | -3/Quarantine | System corruption reached 10% 23322 | -3/Quarantine | Lost 6 parts (2p1n1u2w) 23374 | -3/Quarantine | Found Alien Artifact 23374 | -3/Quarantine | Identified Matter Drive 23449 | -3/Quarantine | Discovered new exit (range 15) 23540 | -3/Quarantine | Found Alien Impact Weapon 23542 | -3/Quarantine | Core integrity fell below 50% 23555 | -3/Quarantine | Cryocooling Duct disabled 23570 | -3/Quarantine | Ambient heat levels rising (+20) 23570 | -3/Quarantine | Non-combat units ordered to evacuate 23573 | -3/Quarantine | Found Alien Artifact 23573 | -3/Quarantine | Identified Phase Redirector 23575 | -3/Quarantine | Identified Transdimensional Reconstructor (x2) 23575 | -3/Quarantine | Warped through subspace 23577 | -3/Quarantine | Spotted Alpha 7 23591 | -3/Quarantine | Found Alien Slashing Weapon 23591 | -3/Quarantine | Identified Sigix Broadsword 23627 | -3/Quarantine | Warped through subspace 23661 | -3/Quarantine | Found Alien Artifact 23745 | -3/Quarantine | Core integrity fell below 20% 23788 | -3/Quarantine | Lost 3 parts (1u2w) 23827 | -3/Quarantine | Identified Phase Armor 23865 | -3/Quarantine | Lost 6 parts (2p1n3u) 23882 | -3/Quarantine | Destroyed Alpha 7 23909 | -3/Quarantine | Found Exp. ECM Suite 23918 | -3/Quarantine | Found Prototype Energy Gun 23918 | -3/Quarantine | Identified Enh. Gamma Rifle 23922 | -3/Quarantine | Found Prototype Ballistic Gun 23937 | -3/Quarantine | Identified Multirail 23948 | -3/Quarantine | Identified Core Stripper 23968 | -3/Quarantine | Destroyed by P-80 Master with Gamma Rifle Last Messages --------------- 23909_ Acquired Exp. ECM Suite. 23911_ %N2Y/XEF G1:XURAQK#BZ:TNZ&5POBIV78A:RE/S 23914_ Acquired Prototype Device. 23914_ Identified Adv. Dynamic Insulation System. 23918_ Acquired Prototype Energy Gun. 23918_ Identified Enh. Gamma Rifle. 23922_ Acquired Prototype Ballistic Gun. 23927_ Acquired Hdn. Centrium Leg. 23929_ #/ULWIEFTO1|SH2 MXU9YHRA :C|4,7/ 23933_ Connecting with Door Terminal... >>Open Sealed Barrier opened. 23934_ ALERT: Rogue bot located, Programmers report to Quarantine Zone 2U. 23937_ Identified Multirail. 23939_ Slug penetrates Suspension Chamber. 23943_ System corrupted: Enh. Gamma Rifle targeting data glitched. 23944_ System corrupted: Matter fused (-9). 23948_ Identified Core Stripper. 23959_ System corrupted: Matter fused (-6). 23963_ System corrupted: Core Stripper targeting data glitched. Map ----- +----------------------------------------------------+ | ##?????# #???????????????????????? | | ######## #???????????????????????? | | # # " " """ #???????????????????????? | | # "" # " " " " #???????????????????????? | | # "" # """ """ #???????????????????????? | | # " "" # """ ????????????????????????? | | + " "" # "" " " "" #???????????????????????? | | # """" # "" """ "" ????????????????????????? | | # # ??????????????????????????? | | ###########################????????????????????? | | #?# #????????????????????? | | #?# #????????????????????? | | #?# """"" #????????????????????? | | #?# "" "" #????????????????????? | | ##### ####?# " " #????????????????????? | | = # #????# ! #????????????????????? | | # ############+######## #????????????????? | | ! # #????????????????? | | + #########?????????????????? | | #?????????????????????????? | | ## ! #?????????????????????????? | | # # # ###########/###?????????????????????????? | | ! #???????# ######????????????????????? | | "!!| "" #???????# #????????????????????? | | "" ! "" #???????# T#pp #????????????????????? | | " """ """ #???????# ##@ #????????????????????? | | !| #???????#"""##"""#????????????????????? | | #???????#"""##"]"#????????????????????? | | #???????#####?####????????????????????? | | ############?????????????????????????????????????? | | | | | | | | | | | | | | | | | | | | | | | | | | | | | | | | | | | | | | | | | +----------------------------------------------------+ Best States ------------- Heat Dissipation 118 Energy Generation 55 Energy Capacity 1050 Matter Stores 300 Matter Capacity 600 Sight Range 16 Robot Scan Range 30 Terrain Scan Range 24 Terrain Scan Density 2135 ECM Strength 3 Jamming Range 14 EM Shielding 4 Armor Coverage 625 Resistance: KI 30 Resistance: TH 15 Resistance: EM 15 Core Shielding 20 Propulsion Shielding 90 Weapon Shielding 100 Weapon Cycling 25 Evasion (%) 52 Targeting Accuracy 12 Launcher Accuracy 20 Target Analysis 12 Armor Integrity Analysis 66 Recoil Reduction 3 Particle Charging 20 Salvage Targeting 1 Offensive Hacking 25 Defensive Hacking 22 Item Schematics ----------------- Assault Drone Bay | -5/Zhirov | Free Exp. Heat Sink | -5/Zhirov | Free Exp. Optical Array | -5/Zhirov | Free Imp. Arc Thrower | -5/Zhirov | Free Robot Schematics ------------------ None Fabricated ------------ Nothing Alien Tech Used ----------------- Core Expander Integrated Dissipator Dimensional Node Initializer Matter Drive Phase Redirector Transdimensional Reconstructor Sigix Broadsword Phase Armor Core Stripper Achievements -------------- None Challenges ------------ None Game ------ Seed CloakingParticleGravjet Manual? 0 Play Time 03:18:25 Cumulative 212.8 hours Start 2021.01.02 @ 13:06:30 End 2021.01.02 @ 16:50:43 Sessions 1 Manual Loads 0 Difficulty Rogue Special Mode None Game No. 192 Rogue 185 Adventurer 0 Explorer 7 Win Type - Total 4 Types 0/0/4/0/0/0/0/0/0 Lore% 67 Gallery% 90 Achievement% 68 Wizard Run 0 Options --------- ASCII 0 Keyboard 0 Movement Numpad Keybinds 0 Fullscreen 1 Font 18/X11 Map View 76x50 Tactical HUD 1 Map Filters NONE Filters NONE Steam 1 RUN: 43b338fd-36db-4b78-8ad0-91586011b705